[Event "Turkey IS Bank Super League 2017"]
[Site "Darica-Kocaeli"]
[Date "2017.07.30"]
[Round "6"]
[White "Samani, Yamac"]
[Black "Ererdem, Gani Eren"]
[Result "1-0"]
[ECO "C90"]
[WhiteElo "2263"]
[BlackElo "2090"]
[Annotator "NA"]
[PlyCount "43"]
[EventType "team-tourn"]
[EventCountry "TUR"]
[SourceTitle "playchess.com"]
[Source "ChessBase"]
[SourceQuality "1"]
[TimeControl "40/5400+30:1800+30"]

1. e4 {[%emt 0:00:30]} e5 {[%emt 0:01:00]} 2. Nf3 {[%emt 0:00:30]} Nc6 {[%emt 0:00:30]} 3. Bb5 {[%emt 0:00:00]} a6 {[%emt 0:00:30]} 4. Ba4 {[%emt 0:00:00]} Nf6 {[%emt 0:00:00]} 5. O-O {[%emt 0:00:30]} Be7 {[%emt 0:00:00]} 6. Re1 {[%emt 0:00:00]} b5 {[%emt 0:00:30]} 7. Bb3 {[%emt 0:00:00]} d6 {[%emt 0:00:00]} 8. a4 {[%emt 0:00:30]} Bg4 {[%emt 0:06:00]} 9. c3 {[%emt 0:01:30]} O-O {[%emt 0:02:30]} 10. h3 {[%emt 0:00:30]} Bh5 {[%emt 0:01:30]} 11. d3 {[%emt 0:00:30] C90: Closed Ruy Lopez with 7...d6: Early deviations} Nd7 {[%emt 0:15:30]} (11... Na5 12. Bc2 c5 13. Nbd2 b4 14. Qe2 Qc7 15. Nf1 bxc3 16. bxc3 c4 17. Bg5 cxd3 18. Bxd3 Nb3 {½-½ (39) Czarnota,P (2540)-Postny,E (2625) Achaea 2016}) 12. Bd5 {[%emt 0:02:30]} Na7 {[%emt 0:03:30]} 13. Bxa8 {[%emt 0:00:30]} Qxa8 {[%emt 0:00:30]} 14. axb5 $146 {[%emt 0:00:30]} ({Find the theoretical novelty and annotate with similar games:} 14. Nbd2 Nc5 15. axb5 Nxd3 16. Re3 Nxc1 17. g4 Bg6 18. bxa6 h5 19. Qxc1 hxg4 20. hxg4 {1-0 (37) Sousa,A (2251)-Viterbo Ferreira,J (2488) Mirandela 2015}) 14... Nxb5 {[%emt 0:02:30]} 15. Nbd2 {[%emt 0:02:30]} Nc5 {[%emt 0:04:30]} 16. g4 {[%emt 0:00:30]} Bg6 {[%emt 0:00:30]} 17. Nf1 {[%emt 0:05:30]} Rd8 {[%emt 0:48:00]} 18. c4 {[%emt 0:20:00]} Nd4 {[%emt 0:17:30]} 19. Nxd4 {[%emt 0:00:30]} exd4 {[%emt 0:00:00]} 20. b4 $18 {[%emt 0:00:30]} Nd7 {[%emt 0:00:00]} 21. f4 {[%emt 0:01:30]} f6 {[%emt 0:00:30]} 22. Qa4 {[%emt 0:04:30]} 1-0

[Event "Turkey IS Bank Super League 2017"]
[Site "Darica-Kocaeli"]
[Date "2017.07.30"]
[Round "6"]
[White "Apaydin, Fethi"]
[Black "Kiremitciyan, Ari"]
[Result "1-0"]
[ECO "C14"]
[WhiteElo "2258"]
[BlackElo "2240"]
[Annotator "NA"]
[PlyCount "49"]
[EventType "team-tourn"]
[EventCountry "TUR"]
[SourceTitle "playchess.com"]
[Source "ChessBase"]
[SourceQuality "1"]
[TimeControl "40/5400+30:1800+30"]

1. e4 e6 2. d4 d5 3. Nc3 Nf6 4. Bg5 Be7 5. e5 Nfd7 6. h4 O-O 7. Bd3 c5 8. dxc5 {[%emt 0:32:00]} Nxe5 {[%emt 0:33:30]} 9. Bxh7+ {[%emt 0:00:30]} Kxh7 {[%emt 0:00:30]} 10. Bxe7 {[%emt 0:00:30]} Qxe7 {[%emt 0:00:30]} 11. Qh5+ {[%emt 0:00:30]} Kg8 {[%emt 0:00:30]} 12. Qxe5 {[%emt 0:00:30]} Qxc5 {[%emt 0:02:30]} 13. Nf3 {[%emt 0:16:30]} Nc6 {[%emt 0:01:30]} 14. Qh5 $11 {[%emt 0:01:30]} e5 {[%emt 0:11:30]} 15. g4 {[%emt 0:18:30]} Nd4 {[%emt 0:23:30]} 16. Ng5 {[%emt 0:09:02]} Nxc2+ {[%emt 0:00:30]} 17. Ke2 {[%emt 0:11:34]} Bxg4+ {[%emt 0:08:25]} 18. Qxg4 {[%emt 0:00:30]} Nxa1 {[%emt 0:00:11]} 19. Rxa1 {[%emt 0:03:22]} Rad8 {[%emt 0:09:53]} 20. Qh5 {[%emt 0:01:44]} Qc4+ {[%emt 0:00:11]} 21. Ke1 {[%emt 0:00:00]} Qd3 {[%emt 0:01:21]} 22. Nce4 {[%emt 0:00:29]} Rfe8 {[%emt 0:02:34]} 23. Qxf7+ {[%emt 0:00:06]} Kh8 {[%emt 0:00:15]} 24. Qh5+ {[%emt 0:00:05]} Kg8 {[%emt 0:00:16]} 25. Qh7+ {[%emt 0:00:04]} 1-0

[Event "Turkey IS Bank Super League 2017"]
[Site "Darica-Kocaeli"]
[Date "2017.07.30"]
[Round "6"]
[White "Avramidou, Anastasia"]
[Black "Gundogan, Sinem Cagla"]
[Result "1-0"]
[ECO "D13"]
[WhiteElo "2247"]
[BlackElo "2000"]
[Annotator "NA"]
[PlyCount "57"]
[EventType "team-tourn"]
[EventCountry "TUR"]
[SourceTitle "playchess.com"]
[Source "ChessBase"]
[SourceQuality "1"]
[TimeControl "40/5400+30:1800+30"]

{[%evp 21,54,31,32767,14,10,32767,152,68,63,72,62,60,64,67,95,83,77,84,32767,32767,187,32767,208,197,246,32767,32767,32767,32767,32767,855,32767,32767,32767,1202]} 1. d4 {[%emt 0:00:30]} d5 {[%emt 0:01:00]} 2. c4 {[%emt 0:00:30]} c6 {[%emt 0:00:30]} 3. cxd5 {[%emt 0:00:30]} cxd5 {[%emt 0:00:30]} 4. Bf4 {[%emt 0:00:00]} Nf6 {[%emt 0:00:30]} 5. Nc3 {[%emt 0:00:00]} Nc6 {[%emt 0:02:30]} 6. e3 {[%emt 0:00:00]} e6 {[%emt 0:01:30]} 7. Bd3 {[%emt 0:00:00]} Be7 {[%emt 0:01:30]} 8. h3 {[%emt 0:00:30]} O-O {[%emt 0:00:30]} 9. Nf3 {[%emt 0:00:30]} a6 {[%emt 0:05:30]} 10. O-O {[%emt 0:00:30]} b5 {[%emt 0:02:30]} 11. Rc1 {[%emt 0:08:00]} Bb7 {[%emt 0:00:30]} 12. Ne5 {[%emt 0:06:30] D13: Slav Defence: Exchange variation without ...Bf5} Nxe5 {[%emt 0:08:30]} 13. Bxe5 {[%emt 0:02:30]} Qa5 $146 {[%emt 0:37:00] [#]} ({Predecessor:} 13... Rc8 $11 {remains equal.} 14. Ne2 Qa5 15. Rxc8 Rxc8 16. Qb1 g6 17. Rc1 Qd8 18. Rxc8 Qxc8 19. Qc1 Ne4 20. f3 Nd6 21. Qxc8+ Bxc8 22. b3 h5 {½-½ (22) Platzgummer,F (2351)-Moser,E (2440) Oberwart 2010}) 14. Qc2 {[%emt 0:32:00]} ({Of course not} 14. Bxf6 Bxf6 15. Qf3 Rfc8 $11) (14. Nxb5 $1 $16 {[%mdl 512]} Rfc8 (14... axb5 15. Rc7) 15. Rxc8+ Bxc8 16. Nc3) 14... Rfc8 {[%emt 0:06:30]} 15. Bxf6 $1 {[%emt 0:00:30]} Bxf6 {[%emt 0:00:30]} 16. Bxh7+ {[%emt 0:00:30]} Kf8 {[%emt 0:14:30]} 17. Bd3 {[%emt 0:03:30]} Bc6 {[%emt 0:02:30]} 18. Qb1 {[%emt 0:04:30]} b4 {[%emt 0:03:30]} 19. Ne2 {[%emt 0:00:30]} Bb5 {[%emt 0:00:30]} 20. Nf4 {[%emt 0:00:30]} Bg5 {[%emt 0:00:30]} (20... g6 $16) 21. Bxb5 {[%emt 0:03:30]} Rxc1 {[%emt 0:03:30]} 22. Rxc1 {[%emt 0:00:30]} ({Don't take} 22. Qxc1 $6 Qxb5 23. Qc2 Bxf4 $16) 22... axb5 {[%emt 0:00:30]} 23. Qh7 {[%emt 0:00:30]} Bh6 {[%emt 0:00:30]} 24. Nd3 {[%emt 0:03:30]} Ke7 {[%emt 0:06:30]} 25. Ne5 {[%emt 0:00:30]} Qb6 {[%emt 0:04:30]} 26. Rc6 {[%emt 0:03:30]} Qb7 {[%emt 0:02:30]} 27. Qc2 {[%emt 0:00:30]} Ra7 $18 {[%emt 0:00:30]} 28. Ng4 {[%emt 0:03:30]} f5 {[%emt 0:05:32]} 29. Qc5+ {[%emt 0:00:30]} 1-0

[Event "Turkey IS Bank Super League 2017"]
[Site "Darica-Kocaeli"]
[Date "2017.07.30"]
[Round "6"]
[White "Kesgin, Halit Kaan"]
[Black "Tuna, Alp"]
[Result "1/2-1/2"]
[ECO "B19"]
[WhiteElo "2207"]
[BlackElo "2280"]
[Annotator "ChessBase"]
[PlyCount "46"]
[EventType "team-tourn"]
[EventCountry "TUR"]
[SourceTitle "playchess.com"]
[Source "ChessBase"]
[SourceQuality "1"]
[TimeControl "40/5400+30:1800+30"]

1. e4 {[%emt 0:00:30]} c6 {[%emt 0:02:00]} 2. d4 {[%emt 0:00:30]} d5 {[%emt 0:00:00]} 3. Nc3 {[%emt 0:00:30]} dxe4 {[%emt 0:00:00]} 4. Nxe4 {[%emt 0:00:30]} Bf5 {[%emt 0:00:00]} 5. Ng3 {[%emt 0:00:00]} Bg6 {[%emt 0:00:00]} 6. Nf3 {[%emt 0:00:00]} Nd7 {[%emt 0:00:30]} 7. h4 {[%emt 0:00:30]} h6 {[%emt 0:00:00]} 8. h5 {[%emt 0:00:00]} Bh7 {[%emt 0:00:00]} 9. Bd3 {[%emt 0:00:00]} Bxd3 {[%emt 0:00:30]} 10. Qxd3 {[%emt 0:00:00]} e6 {[%emt 0:00:00]} 11. Bd2 {[%emt 0:00:00]} Ngf6 {[%emt 0:00:00]} 12. O-O-O {[%emt 0:00:30]} Be7 {[%emt 0:00:00]} 13. Qe2 {[%emt 0:00:00]} O-O {[%emt 0:00:00]} 14. Nf1 {[%emt 0:00:00]} c5 {[%emt 0:01:30]} 15. g4 {[%emt 0:02:30]} cxd4 {[%emt 0:01:30]} 16. g5 {[%emt 0:00:00]} Nd5 {[%emt 0:00:30]} 17. gxh6 {[%emt 0:03:00]} Qb6 {[%emt 0:00:30]} 18. Rg1 {[%emt 0:13:30]} Ba3 {[%emt 0:01:30]} 19. Rxg7+ {[%emt 0:00:30]} Kh8 {[%emt 0:00:00]} 20. Rh7+ {[%emt 0:01:30]} Kg8 {[%emt 0:00:00]} 21. Rg7+ {[%emt 0:00:30]} Kh8 {[%emt 0:00:30]} 22. Rh7+ {[%emt 0:00:30]} Kg8 {[%emt 0:00:30]} 23. Rg7+ {[%emt 0:00:30]} Kh8 {[%emt 0:00:00]} 1/2-1/2

[Event "Turkey IS Bank Super League 2017"]
[Site "Darica-Kocaeli"]
[Date "2017.07.30"]
[Round "6"]
[White "Tanriverdi, Enes"]
[Black "Ozen, Bahadir"]
[Result "0-1"]
[ECO "E94"]
[WhiteElo "2203"]
[BlackElo "2315"]
[Annotator "NA"]
[PlyCount "80"]
[EventType "team-tourn"]
[EventCountry "TUR"]
[SourceTitle "playchess.com"]
[Source "ChessBase"]
[SourceQuality "1"]
[TimeControl "40/5400+30:1800+30"]

1. d4 {[%emt 0:01:30]} d6 {[%emt 0:02:00]} 2. Nf3 {[%emt 0:00:00]} g6 {[%emt 0:00:30]} 3. c4 {[%emt 0:00:00]} Bg7 {[%emt 0:00:00]} 4. Nc3 {[%emt 0:00:30]} Nd7 {[%emt 0:00:00]} 5. e4 {[%emt 0:00:30]} e5 {[%emt 0:00:30]} 6. Bg5 {[%emt 0:06:30]} Ngf6 {[%emt 0:05:30]} 7. Be2 {[%emt 0:02:30] LiveBook: 13 Games} c6 {[%emt 0:04:30]} 8. O-O {[%emt 0:04:30]} O-O {[%emt 0:00:30]} 9. dxe5 {[%emt 0:20:30]} dxe5 {[%emt 0:00:30]} 10. Qc2 {[%emt 0:00:30]} Qe7 {[%emt 0:03:30]} 11. Rfd1 {[%emt 0:46:30]} Nc5 {[%emt 0:21:00]} 12. h3 {[%emt 0:11:30]} Ne6 {[%emt 0:18:30]} 13. Be3 {[%emt 0:03:30]} Nh5 {[%emt 0:04:30]} 14. c5 {[%emt 0:02:30]} Nxc5 {[%emt 0:05:30]} 15. Nd5 {[%emt 0:01:30]} cxd5 {[%emt 0:00:00]} 16. Bxc5 {[%emt 0:00:30]} Qc7 {[%emt 0:00:00]} 17. Rac1 {[%emt 0:04:30]} dxe4 {[%emt 0:04:30]} 18. Qxe4 {[%emt 0:00:30]} Bf5 {[%emt 0:01:30]} 19. Qe3 {[%emt 0:01:30]} Rfd8 {[%emt 0:02:30]} 20. Rxd8+ {[%emt 0:10:13]} ({White should play} 20. g4 $16) 20... Rxd8 {[%emt 0:01:30]} 21. g4 {[%emt 0:02:18]} Nf4 {[%emt 0:01:30]} 22. gxf5 {[%emt 0:01:24]} b6 {[%emt 0:00:00]} 23. Bc4 {[%emt 0:02:19]} (23. Bf1 $15 bxc5 24. Rxc5) 23... bxc5 {[%emt 0:02:00]} 24. Ng5 {[%emt 0:00:03]} Qb7 {[%emt 0:00:00]} 25. Qg3 {[%emt 0:01:31]} Rd7 {[%emt 0:05:00]} 26. Re1 $19 {[%emt 0:01:24]} Qb4 {[%emt 0:02:30]} 27. Re4 {[%emt 0:00:12]} Qxc4 {[%emt 0:12:30]} 28. Rxc4 {[%emt 0:00:30]} Ne2+ {[%emt 0:00:00]} 29. Kf1 {[%emt 0:00:48]} Nxg3+ {[%emt 0:00:00]} 30. fxg3 {[%emt 0:00:00]} gxf5 {[%emt 0:01:30]} 31. Rxc5 {[%emt 0:00:00]} Bf6 {[%emt 0:01:30]} 32. Nf3 {[%emt 0:00:19]} Rd3 {[%emt 0:01:31]} 33. Ke2 {[%emt 0:01:36]} e4 {[%emt 0:00:06]} 34. Nd2 {[%emt 0:00:00]} Rxg3 {[%emt 0:00:58]} 35. Rxf5 {[%emt 0:00:00]} Rg2+ {[%emt 0:02:39]} 36. Kd1 {[%emt 0:00:27]} e3 {[%emt 0:02:12]} 37. Nf3 {[%emt 0:00:07]} Kg7 {[%emt 0:03:06]} 38. Rb5 {[%emt 0:00:11]} Rf2 {[%emt 0:00:24]} 39. Ne1 {[%emt 0:00:36]} Bxb2 {[%emt 0:00:19]} 40. Nc2 {[%emt 0:00:33]} Rd2+ {[%emt 0:00:15]} 0-1

[Event "Turkey IS Bank Super League 2017"]
[Site "Darica-Kocaeli"]
[Date "2017.07.30"]
[Round "6"]
[White "Yilmaz, Goktan"]
[Black "Arat, Ufuk Sezen"]
[Result "1-0"]
[ECO "B15"]
[WhiteElo "2202"]
[BlackElo "2400"]
[Annotator "ChessBase"]
[PlyCount "81"]
[EventType "team-tourn"]
[EventCountry "TUR"]
[SourceTitle "playchess.com"]
[Source "ChessBase"]
[SourceQuality "1"]
[TimeControl "40/5400+30:1800+30"]

1. e4 c6 2. d4 d5 3. Nc3 h6 4. Nf3 dxe4 5. Nxe4 Bf5 6. Bd3 e6 7. O-O Nf6 8. Nxf6+ Qxf6 9. Bxf5 Qxf5 10. c4 Na6 11. a3 {[%emt 0:31:30]} Be7 {[%emt 0:39:00]} 12. Qb3 {[%emt 0:06:30]} O-O-O {[%emt 0:18:30]} 13. Be3 {[%emt 0:04:30]} Bf6 {[%emt 0:04:30]} 14. Qa4 {[%emt 0:03:30]} g5 {[%emt 0:02:30]} 15. b4 {[%emt 0:01:30]} g4 {[%emt 0:09:30]} 16. Ne5 {[%emt 0:03:30]} Bxe5 {[%emt 0:00:30]} 17. dxe5 {[%emt 0:00:30]} Qxe5 {[%emt 0:02:30]} 18. b5 {[%emt 0:01:30]} Nb8 {[%emt 0:02:30]} 19. Qxa7 {[%emt 0:03:30]} Rd7 {[%emt 0:09:08]} 20. Rab1 {[%emt 0:01:30]} h5 {[%emt 0:03:24]} 21. Qa8 {[%emt 0:01:30]} c5 {[%emt 0:01:30]} 22. Rfe1 {[%emt 0:26:22]} h4 {[%emt 0:01:52]} 23. b6 {[%emt 0:02:28]} Rd6 {[%emt 0:01:02]} 24. g3 {[%emt 0:05:32]} hxg3 {[%emt 0:00:35]} 25. fxg3 {[%emt 0:00:00]} f6 {[%emt 0:01:12]} 26. Bf4 {[%emt 0:02:27]} Qd4+ {[%emt 0:00:30]} 27. Be3 {[%emt 0:00:30]} Qe5 {[%emt 0:00:00]} 28. Bf4 {[%emt 0:00:06]} Qh5 {[%emt 0:00:00]} 29. Rb2 {[%emt 0:00:40]} e5 {[%emt 0:00:02]} 30. Be3 {[%emt 0:00:00]} Rd3 {[%emt 0:00:39]} 31. a4 {[%emt 0:02:18]} Qh7 {[%emt 0:02:14]} 32. a5 {[%emt 0:01:20]} Ra3 {[%emt 0:00:21]} 33. Rd2 {[%emt 0:00:00]} Qe4 {[%emt 0:01:41]} 34. Bf2 {[%emt 0:00:00]} Qh7 {[%emt 0:00:00]} 35. Be3 {[%emt 0:00:06]} f5 {[%emt 0:01:38]} 36. Red1 {[%emt 0:00:26]} Rd3 {[%emt 0:01:59]} 37. Rxd3 {[%emt 0:05:15]} Qxh2+ {[%emt 0:00:30]} 38. Kf1 {[%emt 0:00:00]} Qh3+ {[%emt 0:00:32]} 39. Ke1 {[%emt 0:00:10]} Qxg3+ {[%emt 0:00:33]} 40. Bf2 {[%emt 0:00:00]} Qg2 {[%emt 0:01:38]} 41. Qxb8+ {[%emt 0:01:20]} 1-0

[Event "Turkey IS Bank Super League 2017"]
[Site "Darica-Kocaeli"]
[Date "2017.07.30"]
[Round "6"]
[White "Bozbey, Ali"]
[Black "Tofan, Ibrahim"]
[Result "0-1"]
[ECO "C00"]
[WhiteElo "2139"]
[BlackElo "2194"]
[Annotator "NA"]
[PlyCount "92"]
[EventType "team-tourn"]
[EventCountry "TUR"]
[SourceTitle "playchess.com"]
[Source "ChessBase"]
[SourceQuality "1"]
[TimeControl "40/5400+30:1800+30"]

1. e4 {[%emt 0:00:30]} e6 {[%emt 0:01:00]} 2. d3 {[%emt 0:00:30]} d5 {[%emt 0:01:30]} 3. Nd2 {[%emt 0:00:00]} b6 {[%emt 0:00:30]} 4. g3 {[%emt 0:01:00]} Bb7 {[%emt 0:00:30]} 5. Bg2 {[%emt 0:00:00]} Nf6 {[%emt 0:00:30]} 6. Qe2 {[%emt 0:02:00]} c5 {[%emt 0:02:30] C00: French: Unusual White 2nd moves} 7. Ngf3 {[%emt 0:03:30]} Nc6 {[%emt 0:05:30]} (7... Be7 8. O-O Nc6 9. e5 Nd7 10. c4 dxc4 11. dxc4 Qc7 12. Re1 O-O 13. Nb3 Rfd8 {0-1 (69) Sandipan,C (2579)-Meijers,V (2514) Beijing 2008}) 8. O-O {[%emt 0:05:30]} Qc7 {[%emt 0:04:30]} 9. exd5 $146 {[%emt 0:06:30]} ({Find the theoretical novelty and annotate with similar games:} 9. c3 Be7 10. Re1 O-O 11. e5 Nd7 12. Nf1 Rfe8 13. Bf4 Nf8 14. h4 Ng6 15. Bg5 Bxg5 16. hxg5 Kf8 17. N1h2 Ke7 18. Ng4 Kd7 19. Qd2 Nce7 {1-0 (66) Agrest,S (2260)-Bratholm,P (2098) Helsingor 2009}) 9... Nxd5 {[%emt 0:00:00]} 10. Nc4 {[%emt 0:01:30]} Be7 {[%emt 0:02:00]} 11. Bg5 {[%emt 0:04:30]} Bxg5 {[%emt 0:03:30]} 12. Nxg5 {[%emt 0:01:30]} Nd4 {[%emt 0:00:30]} 13. Qd2 {[%emt 0:07:30]} O-O {[%emt 0:30:00]} 14. c3 {[%emt 0:38:00]} Nf5 {[%emt 0:04:30]} 15. Ne3 {[%emt 0:04:30]} Ndxe3 {[%emt 0:03:30]} 16. fxe3 {[%emt 0:00:30]} Bxg2 {[%emt 0:00:00]} 17. Kxg2 {[%emt 0:00:30]} h6 {[%emt 0:02:00]} 18. Nf3 {[%emt 0:02:30]} Rad8 {[%emt 0:00:30]} 19. e4 {[%emt 0:01:30]} Ne7 {[%emt 0:01:30]} 20. Qe2 {[%emt 0:03:30]} e5 {[%emt 0:04:30]} 21. Rad1 {[%emt 0:05:30]} f6 {[%emt 0:05:30]} 22. d4 {[%emt 0:04:30]} cxd4 {[%emt 0:00:30]} 23. cxd4 {[%emt 0:00:30]} exd4 {[%emt 0:06:30]} 24. Nxd4 {[%emt 0:00:00]} Qe5 {[%emt 0:01:30]} 25. Qc4+ {[%emt 0:02:00]} Kh8 {[%emt 0:00:30]} 26. Rfe1 {[%emt 0:03:30]} Rc8 {[%emt 0:00:30]} 27. Qb3 {[%emt 0:04:30]} Rfd8 {[%emt 0:07:30]} 28. Nf3 {[%emt 0:00:30]} Qc7 {[%emt 0:03:30]} 29. Rxd8+ {[%emt 0:01:30]} Rxd8 {[%emt 0:00:30]} 30. e5 {[%emt 0:00:30]} f5 {[%emt 0:03:30]} 31. Re2 {[%emt 0:02:30]} Qc6 {[%emt 0:01:30]} 32. Kf2 {[%emt 0:07:30]} Qc5+ $11 {[%emt 0:05:30]} 33. Qe3 {[%emt 0:00:00]} Qa5 {[%emt 0:00:30]} 34. a3 {[%emt 0:02:00]} Rd1 {[%emt 0:04:02]} 35. e6 {[%emt 0:02:19]} Kh7 {[%emt 0:02:12]} 36. h4 {[%emt 0:01:57]} Qb5 {[%emt 0:03:46]} 37. Qc3 {[%emt 0:02:43]} Rd3 {[%emt 0:02:41]} 38. Qe5 {[%emt 0:02:50]} Qc6 {[%emt 0:03:47]} 39. Qf4 {[%emt 0:00:13]} Qc5+ {[%emt 0:01:27]} 40. Kg2 {[%emt 0:00:27]} Ng6 {[%emt 0:30:27]} 41. Qb8 {[%emt 0:05:01]} Qd5 {[%emt 0:00:00]} 42. Rf2 {[%emt 0:00:00]} Rxf3 {[%emt 0:00:00]} 43. Rxf3 {[%emt 0:00:00]} Ne5 {[%emt 0:00:00]} 44. e7 {[%emt 0:00:30]} Qxf3+ {[%emt 0:00:00]} 45. Kg1 {[%emt 0:00:30]} Qe3+ {[%emt 0:00:00]} 46. Kf1 {[%emt 0:01:30]} Nd3 {[%emt 0:00:00]} 0-1

[Event "Turkey IS Bank Super League 2017"]
[Site "Darica-Kocaeli"]
[Date "2017.07.30"]
[Round "6"]
[White "Dolgun, Can"]
[Black "Tasdogen, Dincer"]
[Result "0-1"]
[ECO "B35"]
[WhiteElo "2104"]
[BlackElo "2215"]
[Annotator "ChessBase"]
[PlyCount "118"]
[EventType "team-tourn"]
[EventCountry "TUR"]
[SourceTitle "playchess.com"]
[Source "ChessBase"]
[SourceQuality "1"]
[TimeControl "40/5400+30:1800+30"]

1. e4 c5 2. Nf3 Nc6 3. d4 cxd4 4. Nxd4 g6 5. Nc3 Bg7 6. Be3 Nf6 7. Bc4 O-O 8. Bb3 a5 9. O-O Nxd4 10. Bxd4 d6 11. Nd5 Nd7 12. Bxg7 Kxg7 13. f4 {[%emt 0:29:30]} b5 {[%emt 0:38:00]} 14. c3 {[%emt 0:06:30]} Bb7 {[%emt 0:06:30]} 15. Qd4+ {[%emt 0:02:30]} Kg8 {[%emt 0:02:30]} 16. f5 {[%emt 0:02:30]} a4 {[%emt 0:13:30]} 17. Bc2 {[%emt 0:02:30]} Bxd5 {[%emt 0:06:30]} 18. exd5 {[%emt 0:03:30]} a3 {[%emt 0:04:30]} 19. b3 {[%emt 0:01:30]} Qb6 {[%emt 0:01:30]} 20. Qxb6 {[%emt 0:02:30]} Nxb6 {[%emt 0:00:30]} 21. f6 {[%emt 0:06:30]} exf6 {[%emt 0:04:30]} 22. Bd3 {[%emt 0:03:30]} Rac8 {[%emt 0:04:14]} 23. Bxb5 {[%emt 0:01:30]} Rxc3 {[%emt 0:00:21]} 24. Bc6 {[%emt 0:03:30]} f5 {[%emt 0:01:44]} 25. Rfe1 {[%emt 0:03:30]} Rc8 {[%emt 0:05:15]} 26. Kf2 {[%emt 0:03:30]} Kg7 {[%emt 0:06:51]} 27. Rad1 {[%emt 0:01:30]} Rc7 {[%emt 0:02:45]} 28. Rd4 {[%emt 0:06:30]} Nc8 {[%emt 0:02:11]} 29. b4 {[%emt 0:02:30]} Kf6 {[%emt 0:02:52]} 30. b5 {[%emt 0:07:42]} Nb6 {[%emt 0:00:10]} 31. Rd2 {[%emt 0:01:44]} Re7 {[%emt 0:01:00]} 32. Red1 {[%emt 0:06:20]} Nc4 {[%emt 0:00:20]} 33. Re2 {[%emt 0:00:25]} Nb6 {[%emt 0:00:39]} 34. Red2 {[%emt 0:02:38]} Nc4 {[%emt 0:00:07]} 35. Re2 {[%emt 0:00:18]} Nb6 {[%emt 0:00:54]} 36. Red2 {[%emt 0:01:16]} Rce3 {[%emt 0:00:15]} 37. Kf1 {[%emt 0:00:37]} g5 {[%emt 0:01:17]} 38. Rd3 {[%emt 0:00:18]} f4 {[%emt 0:00:00]} 39. R1d2 {[%emt 0:00:30]} Nc4 {[%emt 0:00:20]} 40. Rd1 {[%emt 0:00:00]} Nb6 {[%emt 0:01:15]} 41. R1d2 {[%emt 0:01:12]} Nc4 {[%emt 0:03:30]} 42. Rd1 {[%emt 0:00:30]} Nb2 {[%emt 0:06:30]} 43. Rxe3 {[%emt 0:01:30]} fxe3 {[%emt 0:00:00]} 44. Re1 {[%emt 0:01:30]} Nd3 {[%emt 0:02:00]} 45. Re2 {[%emt 0:00:30]} Nf4 {[%emt 0:00:55]} 46. b6 {[%emt 0:01:30]} Nxe2 {[%emt 0:00:32]} 47. Kxe2 {[%emt 0:00:30]} Re4 {[%emt 0:00:03]} 48. b7 {[%emt 0:00:00]} Rb4 {[%emt 0:00:30]} 49. Kxe3 {[%emt 0:00:00]} g4 {[%emt 0:01:21]} 50. g3 {[%emt 0:01:30]} Ke5 {[%emt 0:00:28]} 51. Kd3 {[%emt 0:00:30]} f5 {[%emt 0:00:48]} 52. Kc3 {[%emt 0:00:00]} Rb6 {[%emt 0:00:00]} 53. Kd3 {[%emt 0:00:00]} f4 {[%emt 0:00:42]} 54. gxf4+ {[%emt 0:00:30]} Kxf4 {[%emt 0:00:01]} 55. Ke2 {[%emt 0:00:30]} h5 {[%emt 0:00:40]} 56. Kf2 {[%emt 0:00:00]} h4 {[%emt 0:00:11]} 57. Kg2 {[%emt 0:00:00]} Rb2+ {[%emt 0:00:19]} 58. Kf1 {[%emt 0:00:30]} g3 {[%emt 0:00:30]} 59. hxg3+ {[%emt 0:00:00]} Kxg3 {[%emt 0:00:00]} 0-1

[Event "Turkey IS Bank Super League 2017"]
[Site "Darica-Kocaeli"]
[Date "2017.07.30"]
[Round "6"]
[White "Ozenir, Ekin Baris"]
[Black "Tarlabasi, Emirhan"]
[Result "1/2-1/2"]
[ECO "D35"]
[WhiteElo "2098"]
[BlackElo "2046"]
[Annotator "NA"]
[PlyCount "73"]
[EventType "team-tourn"]
[EventCountry "TUR"]
[SourceTitle "playchess.com"]
[Source "ChessBase"]
[SourceQuality "1"]
[TimeControl "40/5400+30:1800+30"]

1. d4 {[%emt 0:00:30]} d5 {[%emt 0:01:00]} 2. c4 {[%emt 0:00:30]} e6 {[%emt 0:00:30]} 3. Nc3 {[%emt 0:00:30]} Nf6 {[%emt 0:00:30]} 4. cxd5 {[%emt 0:03:30]} exd5 {[%emt 0:00:30]} 5. Bf4 {[%emt 0:03:30]} c6 {[%emt 0:04:30]} 6. Qc2 {[%emt 0:00:30]} Na6 {[%emt 0:03:30]} 7. a3 {[%emt 0:04:30]} g6 {[%emt 0:03:30]} 8. e3 {[%emt 0:03:30]} Bf5 {[%emt 0:06:30]} 9. Bd3 {[%emt 0:01:30]} Bxd3 {[%emt 0:00:30]} 10. Qxd3 {[%emt 0:00:00]} Bd6 {[%emt 0:04:30]} 11. Bg5 {[%emt 0:03:00]} Be7 {[%emt 0:02:30]} 12. Nf3 {[%emt 0:00:30]} O-O {[%emt 0:00:30]} 13. Bxf6 {[%emt 0:00:30]} Bxf6 {[%emt 0:00:30]} 14. b4 {[%emt 0:29:00]} Nc7 {[%emt 0:38:30]} 15. O-O {[%emt 0:01:30]} a6 {[%emt 0:03:30]} 16. a4 {[%emt 0:16:30]} Qe7 $11 {[%emt 0:07:30]} 17. b5 {[%emt 0:11:30]} axb5 {[%emt 0:08:30]} 18. axb5 {[%emt 0:00:30]} Ne6 {[%emt 0:07:30]} 19. Rfc1 {[%emt 0:12:30]} Rfd8 {[%emt 0:09:30]} 20. Rxa8 {[%emt 0:04:30]} Rxa8 {[%emt 0:02:30]} 21. bxc6 {[%emt 0:02:30]} bxc6 {[%emt 0:00:30]} 22. Qc2 {[%emt 0:00:30]} Qa7 {[%emt 0:03:38]} 23. Ne1 {[%emt 0:01:30]} Be7 {[%emt 0:05:43]} 24. Nd3 {[%emt 0:00:30]} Bd6 {[%emt 0:00:26]} 25. h3 {[%emt 0:02:28]} Qa6 {[%emt 0:07:18]} 26. Nb1 {[%emt 0:03:07]} Nd8 {[%emt 0:04:59]} 27. Nd2 {[%emt 0:02:46]} Qa4 {[%emt 0:02:24]} 28. Qxa4 {[%emt 0:05:01]} Rxa4 {[%emt 0:00:04]} 29. Nc5 {[%emt 0:00:08]} Bxc5 {[%emt 0:01:11]} 30. Rxc5 {[%emt 0:00:30]} Ra1+ {[%emt 0:00:00]} 31. Nf1 {[%emt 0:00:23]} Kf8 {[%emt 0:00:01]} 32. g4 {[%emt 0:00:36]} Ke7 {[%emt 0:01:05]} 33. Kg2 {[%emt 0:00:36]} Kd6 {[%emt 0:01:30]} 34. Nd2 {[%emt 0:01:06]} Ne6 {[%emt 0:00:49]} 35. Rc2 {[%emt 0:00:04]} f6 {[%emt 0:00:17]} 36. h4 {[%emt 0:01:23]} h6 {[%emt 0:00:27]} 37. Nf3 {[%emt 0:00:20]} 1/2-1/2